Cogmind - Beta 10.2 *** ADVENTURER MODE // 2021.02.02 @ 00:01:44 Player: Arctifire Result: Self-destructed Performance ------------- Evolutions (1) 500 Regions Visited (4) 800 Robots Destroyed (6) 30 Value Destroyed (113) 113 Prototype IDs (2) 40 Alien Tech Used (0) 0 Bonus (0) 0 TOTAL SCORE: 1483 Bonus ------- None Cogmind --------- Core Integrity 375/400 Matter 290/300 Energy 125/125 System Corruption 0% Temperature Cool (0) Movement Rolling (90) Location -9/Storage Parts ------- > --- POWER (2) -------- Light Ion Engine > --- PROPULSION (2) --- Armored Wheel > --- UTILITY (3) ------ Small Storage Unit > --- WEAPON (2) ------- (None) > --- INVENTORY (6) ---- Armored Wheel Armored Wheel Light EM Pulse Cannon Light EM Pulse Cannon Plasma Cutter Plasma Cutter Peak State ------------ > --- POWER ------------ Ion Engine > --- PROPULSION ------- Armored Wheel Armored Wheel > --- UTILITY ---------- Small Storage Unit > --- WEAPON ----------- Light EM Pulse Cannon Light EM Pulse Cannon > --- INVENTORY -------- Armored Wheel Armored Wheel Light EM Pulse Cannon Light EM Pulse Cannon Plasma Cutter [Rating: 11] Favorites ----------- Power Light Ion Engine Engine Light Ion Engine Propulsion Armored Wheel Wheel Armored Wheel Utility Small Storage Unit Storage Small Storage Unit Weapon Light EM Pulse Cannon Energy Gun Small Laser Energy Cannon Light EM Pulse Cannon Launcher Grenade Launcher Build | -11 -10 -10 -9 -9 ------- Run | Scr Mat Min Mat Sto Slots Evolved 2 | . . . 2 . Power 1 | . . . 1 . Propulsion . | . . . . . Utility 1 | . . . 1 . Weapon . | . . . . . Parts Attached 17 | 6 7 2 2 . Power 3 | 1 . 2 . . Engine 3 | 1 . 2 . . Core . | . . . . . Reactor . | . . . . . Propulsion 6 | 2 2 . 2 . Treads . | . . . . . Leg . | . . . . . Wheel 6 | 2 2 . 2 . Hover . | . . . . . Flight . | . . . . . Utility 1 | 1 . . . . Device . | . . . . . Storage 1 | 1 . . . . Processor . | . . . . . Hackware . | . . . . . Protection . | . . . . . Artifact . | . . . . . Weapon 7 | 2 5 . . . Energy Gun 4 | 2 2 . . . Energy Cannon 2 | . 2 . . . Ballistic Gun . | . . . . . Ballistic Cannon . | . . . . . Launcher 1 | . 1 . . . Special Weapon . | . . . . . Impact Weapon . | . . . . . Slashing Weapon . | . . . . . Piercing Weapon . | . . . . . Special Melee Weapon . | . . . . . Unidentified Prototypes . | . . . . . Parts Lost 3 | . . 1 2 . Power 1 | . . 1 . . Propulsion . | . . . . . Utility . | . . . . . Weapon 2 | . . . 2 . Highest Loss Streak 2 | . . 1 2 . Average Slot Usage (%) 81 | . 85 85 66 37 Engine 13 | . 14 14 11 11 Wheel 27 | . 28 28 22 15 Storage 13 | . 14 14 11 11 Energy Gun 2 | . 14 . . . Energy Cannon 23 | . 12 28 22 . Naked Turns . | . . . . . Heaviest Build 17 | 11 17 17 15 7 Greatest Support 32 | 32 32 24 24 24 Greatest Overweight (x) . | . . . . . Average Overweight (x) . | . . . . . Largest Inventory Capacity 6 | 6 6 6 6 6 Average Capacity 5 | 5 6 6 6 6 Most Carried 6 | 4 6 6 6 6 Average Carried 5 | 2 5 6 6 6 Final Capacity 6 | 6 6 6 6 6 Final Carried 6 | 4 6 6 6 6 Class Distribution -------------------- 100% | Mutant Dominant Class ---------------- Mutant | -10/Materials Mutant | -10/Mines Mutant | -9/Materials Mutant | -9/Storage Resources | -11 -10 -10 -9 -9 ----------- Run | Scr Mat Min Mat Sto Matter Collected 360 | 251 . 109 . . Remotely . | . . . . . Salvage Created 358 | . 73 285 . . Parts 10 | . 4 6 . . Haulers Intercepted . | . . . . . Recyclers Shooed . | . . . . . Parts Field Recycled . | . . . . . Retrieved Matter . | . . . . . Parts Self-Destructed . | . . . . . Prevented . | . . . . . Kills | -11 -10 -10 -9 -9 ------- Run | Scr Mat Min Mat Sto Combat Hostiles Destroyed 9 | . 2 7 . . Guns 1 | . 1 . . . Cannons 7 | . . 7 . . AOE 1 | . 1 . . . Classes Destroyed 4 | . 1 3 . . Recycler 2 | . . 2 . . Swarmer 2 | . . 2 . . Grunt 2 | . 2 . . . Assembled 5 | . . 5 . . Best Kill Streak 4 | . 2 4 . . Combat Bots Only 2 | . 2 2 . . Max Kills in Single Turn 1 | . 1 1 . . Gunslinging . | . . . . . Exploded 1 | . 1 . . . Melee . | . . . . . Uniques/NPCs Destroyed . | . . . . . Combat | -11 -10 -10 -9 -9 -------- Run | Scr Mat Min Mat Sto Damage Taken 549 | . 121 362 66 . Core 111 | . 9 77 25 . Absorbed by Shields . | . . . . . Core Remaining (%) 82 | 100 . 65 . . Volleys Fired 40 | . 8 28 4 . Largest 2 | . 2 2 1 . Hottest 112 | . 100 112 56 . Shots Fired 60 | . 13 43 4 . Gun 12 | . 12 . . . Cannon 47 | . . 43 4 . Launcher 1 | . 1 . . . Special . | . . . . . Kinetic . | . . . . . Thermal 12 | . 12 . . . Explosive 1 | . 1 . . . Electromagnetic 47 | . . 43 4 . Robot Hit Streak 20 | . 8 16 20 . Robot Miss Streak 2 | . 1 2 . . Penetration Max . | . . . . . Secondary Targets . | . . . . . Shots Hit Robots 50 | . 11 35 4 . Core Hits 20 | . 5 14 1 . Critical Hits . | . . . . . Critical Kills . | . . . . . Critical Parts Destroyed . | . . . . . Melee Attacks . | . . . . . Impact . | . . . . . Slashing . | . . . . . Piercing . | . . . . . Sneak Attacks . | . . . . . Combat Hostiles . | . . . . . Follow-up Attacks . | . . . . . Damage Inflicted 939 | . 147 716 76 . Guns 101 | . 101 . . . Cannons 753 | . . 677 76 . Explosions 85 | . 46 39 . . Melee . | . . . . . Ramming . | . . . . . Kinetic . | . . . . . Thermal 140 | . 101 39 . . Explosive 46 | . 46 . . . Electromagnetic 753 | . . 677 76 . Impact . | . . . . . Slashing . | . . . . . Piercing . | . . . . . Highest Corruption 3 | . . 3 . . Average Corruption 3 | . . 3 . . Corruption Purged . | . . . . . Effects 1 | . . 1 . . Message Errors 1 | . . 1 . . Overload Shots . | . . . . . Overflow Damage . | . . . . . Projectiles . | . . . . . Explosions . | . . . . . Melee . | . . . . . Knockbacks . | . . . . . Impact . | . . . . . Kinetic . | . . . . . Secondary . | . . . . . Self-Inflicted Damage 24 | . . 24 . . Shots 1 | . . 1 . . Rammed . | . . . . . Targets Rammed . | . . . . . Kicked . | . . . . . Crushed . | . . . . . Highest Temperature 247 | . 247 216 70 . Average Temperature 73 | . 146 53 33 . Received Heat Transfer 137 | . 87 20 30 . Effects 1 | . . 1 . . Energy Bleed 1 | . . 1 . . Siege Activations . | . . . . . Robots Corrupted . | . . . . . Combat Hostiles . | . . . . . Parts Fried . | . . . . . Impact Corruptions . | . . . . . Robots Melted . | . . . . . Combat Hostiles . | . . . . . Parts Melted . | . . . . . Heat Transferred 396 | . 296 100 . . Parts Sabotaged . | . . . . . Parts Stolen . | . . . . . Parts Stripped . | . . . . . Power Chain Reactions 1 | . . 1 . . Missiles Intercepted . | . . . . . Alert | -11 -10 -10 -9 -9 ------- Run | Scr Mat Min Mat Sto Peak Influence 68 | . 57 68 7 8 Initial 18 | . . 18 . . Average 22 | . 25 27 5 3 Maximum Alert Level . | . . . . . Low Security (%) 100 | 100 100 100 100 100 Level 1 . | . . . . . Level 2 . | . . . . . Level 3 . | . . . . . Level 4 . | . . . . . Level 5 . | . . . . . High Security . | . . . . . Max Security . | . . . . . Squads Dispatched 1 | . . . . 1 Investigation . | . . . . . Extermination . | . . . . . Reinforcement 1 | . . . . 1 Assault . | . . . . . Garrison . | . . . . . Intercept . | . . . . . Construction Impeded . | . . . . . Haulers Reinforced . | . . . . . Stealth | -11 -10 -10 -9 -9 --------- Run | Scr Mat Min Mat Sto Distress Signals . | . . . . . Communications Jammed . | . . . . . Distress Signals . | . . . . . Times Spotted 26 | . 2 15 3 6 Peak Tracking Total 6 | . 2 3 3 6 Tactical Retreats 2 | . . 2 . . Traps | -11 -10 -10 -9 -9 ------- Run | Scr Mat Min Mat Sto Traps Triggered 1 | . . . . 1 Indirectly . | . . . . . Trap Hack Attempts . | . . . . . Triggered . | . . . . . Disarmed . | . . . . . Reprogrammed . | . . . . . Reused . | . . . . . Traps Extracted . | . . . . . Installed . | . . . . . Triggered . | . . . . . Machines | -11 -10 -10 -9 -9 ---------- Run | Scr Mat Min Mat Sto Machines Disabled . | . . . . . Max in Single Turn . | . . . . . Machines Sabotaged . | . . . . . Garrisons Compromised . | . . . . . Overloaded Fab Kills . | . . . . . Fab Network Shutdowns . | . . . . . Hacking | -11 -10 -10 -9 -9 --------- Run | Scr Mat Min Mat Sto Machines Accessed 4 | . 1 1 1 1 Terminals 4 | . 1 1 1 1 Fabricators . | . . . . . Repair Stations . | . . . . . Recycling Units . | . . . . . Scanalyzers . | . . . . . Garrison Access . | . . . . . Total Hacks 8 | . 1 3 2 2 Successful 4 | . 1 . 1 2 Failed 4 | . . 3 1 . Catastrophic . | . . . . . Database Lockouts . | . . . . . Manual 7 | . 1 3 2 1 Terminals 8 | . 1 3 2 2 Fabricators . | . . . . . Repair Stations . | . . . . . Recycling Units . | . . . . . Scanalyzers . | . . . . . Garrison Access . | . . . . . Terminal Hacks 4 | . 1 . 1 2 Prototype ID Bank 1 | . . . . 1 Branch Access Points 2 | . 1 . 1 . Zone Layout 1 | . . . . 1 Fabricator Hacks . | . . . . . Repair Station Hacks . | . . . . . Recycling Unit Hacks . | . . . . . Scanalyzer . | . . . . . Garrison Access Hacks . | . . . . . Unauthorized Hacks . | . . . . . Terminals . | . . . . . Fabricators . | . . . . . Repair Stations . | . . . . . Recycling Units . | . . . . . Scanalyzers . | . . . . . Garrison Access . | . . . . . Data Cores Recovered . | . . . . . Used . | . . . . . Hacking Detections 4 | . 1 1 1 1 Full Trace Events . | . . . . . Feedback Events . | . . . . . Feedback Blocked . | . . . . . Robot Schematics Acquired . | . . . . . Robots Built . | . . . . . Matter . | . . . . . Time . | . . . . . Total Robot Build Rating . | . . . . . Part Schematics Acquired . | . . . . . Parts Built . | . . . . . Matter . | . . . . . Time . | . . . . . Total Part Build Rating . | . . . . . Parts Repaired . | . . . . . Time . | . . . . . Parts Recycled . | . . . . . Recycled Matter . | . . . . . Retrieved Matter . | . . . . . Retrieved Components . | . . . . . Parts Scanalyzed . | . . . . . Part Schematics Acquired . | . . . . . Parts Damaged . | . . . . . Bothacking | -11 -10 -10 -9 -9 ------------ Run | Scr Mat Min Mat Sto Used RIF Installer . | . . . . . Robots Hacked . | . . . . . Non-combat . | . . . . . Combat . | . . . . . Robot Hacks Applied . | . . . . . Relay Couplers Released . | . . . . . Robots Rewired . | . . . . . Allies Hacked . | . . . . . Hacks Repelled . | . . . . . Allies | -11 -10 -10 -9 -9 -------- Run | Scr Mat Min Mat Sto Total Allies . | . . . . . Largest Group . | . . . . . Highest-Rated Group . | . . . . . Highest-Rated Ally . | . . . . . Total Orders . | . . . . . Ally Attacks . | . . . . . Total Damage . | . . . . . Kills . | . . . . . Allies Corrupted . | . . . . . Allies Melted . | . . . . . Intel | -11 -10 -10 -9 -9 ------- Run | Scr Mat Min Mat Sto Robot Analysis Total . | . . . . . Derelict Logs Recovered . | . . . . . Drone Launches . | . . . . . Drone Recoveries . | . . . . . Exploration | -11 -10 -10 -9 -9 ------------- Run | Scr Mat Min Mat Sto Turns Passed 1021 | 82 181 659 54 45 Spaces Moved 859 | 71 143 555 41 49 Core 2 | 2 . . . . Treads . | . . . . . Legs . | . . . . . Wheels 857 | 69 143 555 41 49 Hover . | . . . . . Flight . | . . . . . Fastest Speed 50 | 50 90 90 90 90 Average Speed 91 | 98 94 90 90 90 Slowest Speed 100 | 100 100 90 90 90 Overloaded Moves . | . . . . . Propulsion Burnouts . | . . . . . Robots Hopped . | . . . . . Cave-ins Triggered . | . . . . . Exploration Rate (%) 25 | 5 20 80 5 15 Regions Visited 4 Branch Regions 2 Pre-discovered Areas . | . . . . . Known Exits Taken 2 | . 1 . 1 . Unknown Exits Taken 2 | 1 . 1 . . Scrap Searched 1 | . . 1 . . Spaces Dug . | . . . . . Terrain Destroyed 17 | . 12 5 . . Melee . | . . . . . Projectile . | . . . . . AOE 17 | . 12 5 . . Terrain Rammed . | . . . . . Walls Destroyed . | . . . . . Machines Disabled . | . . . . . Actions | -11 -10 -10 -9 -9 --------- Run | Scr Mat Min Mat Sto Total 1033 | 80 181 671 52 49 Wait 92 | . . 86 6 . Move 855 | 70 142 554 40 49 Hop . | . . . . . Pick Up 13 | 4 9 . . . Fast Attach 11 | 6 4 1 . . Attach . | . . . . . Detach 2 | . 2 . . . Swap 6 | . 3 1 2 . Drop 14 | . 13 1 . . Fire 40 | . 8 28 4 . Melee . | . . . . . Ram . | . . . . . Kick . | . . . . . Crush . | . . . . . Escape Stasis . | . . . . . Rewire . | . . . . . Trap . | . . . . . Miscellaneous . | . . . . . Route ------- -11/Scrapyard -10/Materials (discovered 3 exits: *Mat / *Min x2) -10/Mines (discovered 2 exits: *Mat x2) -9/Materials (discovered 4 exits: Min x2 / *Sto x2) -9/Storage History --------- Turn | Location | Event 41 | -11/Scrapyard | Discovered new exit (range 16) 83 | -11/Scrapyard | Entered Materials 221 | -10/Materials | Identified exit to Mines 250 | -10/Materials | Discovered new exit (range 7) 264 | -10/Materials | Entered Mines 287 | -10/Mines | Discovered new exit (range 15) 305 | -10/Mines | Build established: Mutant 469 | -10/Mines | Assembled infested the area 515 | -10/Mines | Discovered new exit (range 13) 593 | -10/Mines | Received a Rocket Launcher from a helpful Derelict 923 | -10/Mines | Entered Materials 923 | -9/Materials | Evolved 2 slots: Power x1, Utility x1 931 | -9/Materials | Discovered new exit (range 13) 933 | -9/Materials | Identified exit to Mines 933 | -9/Materials | Identified exit to Storage 977 | -9/Materials | Entered Storage 1022 | -9/Storage | Self-destructed Last Messages --------------- LOCATION=STORAGE GOAL=ESCAPE 00991_ Triggered Blade Trap. 00991_ Massive razor-sharp blades shoot up from within the floor. 00991_ Arm. Wheel severed. 00995_ R-06 Scavenger collects Arm. Wheel. 01005_ Connecting with Terminal... >>Layout(Zone) Retrieving Zone 1S layout... Downloaded map data. >>Prototypes Downloading prototype IDs... Imp. VTOL Module Adv. EMP Blaster 01013_ O-16 Technician: "IFF HANDSHAKE FAILED. SECURING TERMINAL." 01018_ O-16 Technician uses terminal to summon reinforcements. 01018_ ALERT: Hostiles spotted, dispatching reinforcements to Terminal S013. 01018_ O-16 Technician locks terminal. 01020_ S-10 Pest destroyed. Map ----- +----------------------------------------------------+ | ?????????????????????????????????????????????????? | | ?????????????????????????????????????????????????? | | ?????????????????????????????????????????????????? | | ?????????????????????????????????????????????????? | | ???????????????????????? ??????????????????????? | | ???????????????????????? /?????????????????????? | | ???????????????????????? #?????????????????????? | | ???????????????????????? #?????????????????????? | | ???????????????????????+ #?????????????????????? | | ??? " # + " """" # # ???????????????? | | ???"" # #### """ # #######???????????????? | | ???" ### #??# # # ???????????????? | | ???" #?# #??# # # """???????????????? | | ???" #?# #?########### # """???????????????? | | ??? #?# #?# # # """???????????????? | | ???##+##?# #?# % # # ???????????????? | | ##### #### ### # #####+#???????????????? | | / = # *% ???????????????? | | ###########+##+## =##### ???????????????? | | #?????????# #???# ???????????????? | | #####/#####??????# ######+###### ???????????????? | | # /! #??????# ## Y ## ???????????????? | | # ! #?????## ## """s""" ## ???????????????? | | # ####### # """s""" ## ???????????????? | | " """ """ + T # """ """ ## ???????????????? | | """ """ ####### # """@""" ## ???????????????? | | " """ """ #?????##### """ """ # ???????????????? | | # #?????????# ##+#???????????????? | | # #?????????# o # ???????????????? | | ?###" "####?????????####"T"#### ???????????????? | | ???#"R"#???????????????#####??# ???????????????? | | ???#"""#??????????????????????# ???????????????? | | ???#####??????????????????????####???????????????? | | | | | | | | | | | | | | | | | | | | | | | | | | | | | | | | | | | +----------------------------------------------------+ Best States ------------- Heat Dissipation 28 Energy Generation 10 Energy Capacity 250 Matter Stores 300 Matter Capacity 300 Sight Range 16 Terrain Scan Density 10 Resistance: KI 20 Resistance: TH 20 Resistance: EX 20 Resistance: EM 20 Resistance: I 20 Resistance: S 20 Resistance: P 20 Evasion (%) 42 Offensive Hacking 10 Item Schematics ----------------- None Robot Schematics ------------------ None Fabricated ------------ Nothing Alien Tech Used ----------------- None Achievements -------------- None Challenges ------------ None Game ------ Seed SubatomicLightpackBuckler Manual? 0 Play Time 00:11:28 Cumulative 40.4 hours Start 2021.02.01 @ 23:50:11 End 2021.02.02 @ 00:01:44 Sessions 1 Manual Loads 0 Difficulty Adventurer Special Mode None Game No. 39 Rogue 0 Adventurer 27 Explorer 12 Win Type - Total 6 Types 4/1/1/0/0/0/0/0/0 Lore% 47 Gallery% 56 Achievement% 54 Wizard Run 0 Options --------- ASCII 0 Keyboard 0 Movement Arrows Keybinds 0 Fullscreen 2 Font 18/SmallcapsGlow Map View 76x50 Tactical HUD 1 Map Filters NONE Filters NONE Steam X RUN: 6db1f45b-c98e-46a6-b02c-63594735b9be